Workbook

Sheet Estimativa
A3: Quadro - 1 VALOR ANUAL MÁXIMO ESTIMADO PARA MANUTENÇÕES | R3: Guraita | S3: 7.84
A4: Unidade | B4: Ano de Inauguração | C4: Idade das Unidades (anos) | D4: Área do Terreno (m²) | E4: Área Construída (m²) | F4: CUB (R$/m²) | G4: Base de Calculo IPTU | H4: Valor do imóvel utilizado (R$) | I4: Valor estimado para manutenção - IN RFB nº 1700/2017 - (R$) | J4: Ano da Ultima Reforma | K4: Percentual anual de obsolescência do imóvel (%) | L4: Acréscimo anual sobre o valor de obsolescência do imóvel (R$) | M4: Valor anual máximo estimado para manutenção (R$) | R4: predio | S4: =179*2 -> 358
A5: 4ª/SR | B5: 1987 | C5: =2023-B5 -> 36 | D5: 10626.03 | E5: 2656.68 | F5: 2130.92 | G5: 9962010.19 | H5: =G5 -> 9962010.19 | I5: =ROUND(H5*4%,2) -> 398480.41 | J5: 2013 | K5: 0.015 | L5: =ROUND(H5*K5,2) -> 149430.15 | M5: =I5+L5 -> 547910.56 | R5: auditorio | S5: 283 | U5: =D8/10000 -> 67.431505
A6: 4ª/EPR | B6: 1975 | C6: =2023-B6 -> 48 | D6: 315 | E6: 285.62 | F6: 2014.98 | G6: 224000 | H6: =G6 -> 224000 | I6: =ROUND(H6*4%,2) -> 8960 | J6: 2020 | K6: 0.008 | L6: =ROUND(H6*K6,2) -> 1792 | M6: =I6+L6 -> 10752 | R6: alojamento | S6: 367 | U6: =U5*15000 -> 1011472.575
A7: 4ª/UEM | B7: 1986 | C7: 37 | D7: 31110.83 | E7: 2026.65 | F7: 1759.29 | G7: x | H7: =E7*F7+((D7-E7)/10000*20000) -> 3623633.439 | I7: 144945.34 | J7: 2019 | K7: 0.009 | L7: 32612.7 | M7: 177558.04 | R7: hipo | S7: 416
A8: 4ª/CIB | B8: 1983 | C8: 40 | D8: 674315.05 | E8: =S15 -> 3060.84 | F8: 1759.29 | G8: x | H8: =E8*F8+((D8-E8)/10000*20000) -> 6727413.624 | I8: 269096.54 | J8: 2013 | K8: 0.015 | L8: 100911.2 | M8: 370007.74 | R8: pisicna | S8: 343
A9: TOTAL ESTIMADO ANUAL DE MANUTENÇÃO | M9: =SUM(M5:M8) -> 1106228.34 | R9: casa | S9: 460
R10: gaplão ração | S10: =12*35 -> 420
R11: captação | S11: =8*5 -> 40
A12: 1 – As fontes para se estabelecer o “Valor do imóvel (R$)” foram: Área Construída imóveis x CUB/m2 ou a base do de cálculo do IPTU | R12: galpão projeto amanha | S12: =15*19 -> 285
A13: 2 – O Percentual anual de obsolescência do imóvel (%) foi estabelecido com o seguinte critério: o mínimo corresponderia a 0,5%, sendo acrescido de 0,1% a cada ano entre a última reforma do imóvel e o atual exercício, limitado ao percentual de 1,5% ao ano | R13: casinha viveiro | S13: =9*9 -> 81
A14: 3 – A fórmula de cálculo para os itens abaixo são:
A15: 3.1 – “Valor estimado para manutenção - IN RFB nº 1700/2017 - (R$)”: “Valor do imóvel (R$)” x 4% | R15: total | S15: =SUM(S3:S13) -> 3060.84
A16: 3.2 – “Acréscimo anual sobre o valor de obsolescência do imóvel (R$)”: “Valor estimado para manutenção - IN RFB nº 1700/2017 - (R$)” x “Percentual anual de obsolescência do imóvel (%)”.
A17: 3.3 – “Valor anual máximo estimado para manutenção (R$)”: “Valor estimado para manutenção - IN RFB nº 1700/2017 - (R$)” + “Acréscimo anual sobre o valor de obsolescência do imóvel (R$)”
A18: 4 – Ressalta-se que os cálculos de cada Unidade foram realizados separadamente somente para esclarecer a metodologia para estimativa do valor total da contratação, não sendo de caráter restritivo em relação ao que poderá ser aplicado em cada Unidade quando houver necessidade de realização de obras/serviços. Em outras palavras, a 4ª SR/Codevasf poderá realizar obras/serviços objeto do Termo de Referência em qualquer Unidade em valor limitado ao total estimado do contrato.
A19: 5- Para o valor do 4ºCIB e da 4ºUEM, foi estimado que cada hectare custa R$20.000.00. Além do CUB aplicado na área dos prédios.
A20: 6- Para o 4º CIB, foram inclusos os prédio do Galpão do Projeto Amanhã, Viveiro de Mudas, Auditório, Prédio da Captação, Guarita, Alojamento...
H26: =45+113+45 -> 203

Sheet Planilha
B3: CONSTITUIÇÃO DE SISTEMA DE REGISTRO DE PREÇOS PARA CONTRATAÇÃO DE EMPRESA ESPECIALIZADA PARA PRESTAÇÃO DE SERVIÇOS DE MANUTENÇÃO PREDIAL, PREVENTIVA E CORRETIVA, DE EQUIPAMENTOS DE CLIMATIZAÇÃO, MATERIAIS E MÃO-DE-OBRA, NAS EDIFICAÇÕES DA CODEVASF – 4ªSR, SITUADAS NOS MUNICÍPIOS DE ARACAJU, PROPRIÁ E NEÓPOLIS, NO ESTADO DE SERGIPE
H4: Data-base: | I4: 2023-10-01
H5: BDI: | I5: =BDI!C29 -> 0.2354
A7: CATSERV | B7: DISCRIMINAÇÃO | C7: UNIDADE | D7: QUANTIDADE | E7: CUSTO TOTAL (CODEVASF) | F7: PREÇO TOTAL (CODEVASF) | G7: CUSTO TOTAL (CONTRATADA) | H7: PREÇO TOTAL (CONTRATADA) | I7: DESCONTO (%)
A8: 1627 | B8: Manutenção predial, preventiva e corretiva, de equipamentos, de climatização, materiais e mão-de-obra, descritos na tabela SINAPI/SE, nas edificações da Codevasf – 4ªSR, situadas nos municípios de Aracaju, Propriá e Neópolis, no estado de Sergipe. | C8: un | D8: 1 | E8: =F8*100%/(100%+I5) -> 895441.4279 | F8: =Estimativa!M9 -> 1106228.34 | G8: =E8+(E8*I8) -> 895441.4279 | H8: =G8*(100%+I5) -> 1106228.34 | I8: 0

Sheet Manutenção
A3: CONSTITUIÇÃO DE SISTEMA DE REGISTRO DE PREÇOS PARA CONTRATAÇÃO DE EMPRESA ESPECIALIZADA PARA PRESTAÇÃO DE SERVIÇOS DE MANUTENÇÃO PREDIAL, PREVENTIVA E CORRETIVA, DE EQUIPAMENTOS DE CLIMATIZAÇÃO, MATERIAIS E MÃO-DE-OBRA, NAS EDIFICAÇÕES DA CODEVASF – 4ªSR, SITUADAS NOS MUNICÍPIOS DE ARACAJU, PROPRIÁ E NEÓPOLIS, NO ESTADO DE SERGIPE
F4: Data-base: | G4: 2023-10-01
F5: BDI Serviços: | G5: =BDI!C29 -> 0.2354
F6: Prazo de Execução: | G6: 12 Meses
A7: DISCRIMINAÇÃO | B7: UNIDADE | C7: QUANTIDADE | D7: Valor Unitário | E7: Valor Unitário c/ BDI | F7: Valor Total | G7: Percentual (%)
A8: Manutenção preventiva, conforme composição | B8: vb | C8: 1 | D8: =106130.08 -> 106130.08 | E8: =D8*$G$5+D8 -> 131113.1008 | F8: =E8*C8 -> 131113.1008 | G8: =F8/F10 -> 0.1185226378
A9: Prestação de serviços de manutenção predial com fornecimento de peças, equipamentos, materiais e mão de obra, na forma estabelecida nas planilhas de serviços e insumos diversos descritos no Sistema Nacional de Pesquisa de Custos e Índices da Construção Civil (SINAPI-SE), nas edificações da 4ª Superintendência Regional da CODEVASF-4ªSR, conforme critérios e condições estabelecidos no Termo de Referência | B9: vb | C9: 1 | D9: =Planilha!E8-SUM(D8:D8) -> 789311.3479 | E9: =D9*$G$5+D9 -> 975115.2392 | F9: =E9*C9 -> 975115.2392 | G9: =F9/F10 -> 0.8814773622
F10: =SUM(F8:F9) -> 1106228.34 | G10: =SUM(G8:G9) -> 1

Sheet Manutenção Preventiva
D1: Obra | E1: Bancos | G1: B.D.I. | I1: Encargos Sociais
D2: Manutenção Preventiva - 4ªSR | E2: SINAPI - 08/2023 - Sergipe SBC - 10/2023 - Sergipe SICRO3 - 04/2023 - Sergipe SICRO2 - 11/2016 - Sergipe ORSE - 08/2023 - Sergipe | G2: 0.2354 | I2: Não Desonerado: embutido nos preços unitário dos insumos de mão de obra, de acordo com as bases.
A3: Orçamento Sintético
A4: Item | B4: Código | C4: Banco | D4: Descrição | E4: Und | F4: Quant. | G4: Valor Unit | H4: Valor Unit com BDI | I4: Total | J4: Peso (%)
A5: 1 | B5: CODEVASF 024 | C5: Próprio | D5: Limpeza e desinfecção química de reservatório | E5: und | F5: 12 | G5: 185.85 | H5: =G5*$G$2+G5 -> 229.59909 | I5: =ROUND(F5*H5,2) -> 2755.19 | J5: =I5/$H$16 -> 0.02101384211
A6: 2 | B6: CODEVASF 027 | C6: Próprio | D6: Pedreiro, jornada de 16h/semana em horário comercial, para execução manutenções preventivas (inclusive ferramentas, com fornecimento de materiais básicos) | E6: Mês | F6: 12 | G6: 1743.57 | H6: =G6*$G$2+G6 -> 2154.006378 | I6: =ROUND(F6*H6,2) -> 25848.08 | J6: =I6/$H$16 -> 0.1971433811
A7: 5 | B7: CODEVASF 028 | C7: Próprio | D7: Realização de vistoria e elaboração de plano anual de manutenção das edificações | E7: UNID | F7: 4 | G7: 2326.24 | H7: 2873.836896 | I7: 11495.35 | J7: 0.08767506776
A8: 6 | B8: CODEVASF 026 | C8: Próprio | D8: Bombeiro/Encanador Hidraulico, jornada de 16h/semana em horário comercial, para execução manutenções preventivas (inclusive ferramentas, com fornecimento de materiais básicos). | E8: Mês | F8: 12 | G8: 1708.26 | H8: 2110.384404 | I8: 25324.61 | J8: 0.1931508739
A9: 7 | B9: CODEVASF 025 | C9: Próprio | D9: Eletricista, jornada de 16h/semana em horário comercial, para execução manutenções preventivas (inclusive ferramentas, com fornecimento de materiais básicos) | E9: Mês | F9: 12 | G9: 1772.08 | H9: 2189.227632 | I9: 26270.73 | J9: 0.2003669338
A10: 8 | B10: 12637 | C10: ORSE | D10: Limpeza de fossa até 5m3 | E10: un | F10: 6 | G10: 350 | H10: 432.39 | I10: 2594.34 | J10: 0.0197870387
A11: 9 | B11: 90778 | C11: SINAPI | D11: ENGENHEIRO CIVIL DE OBRA PLENO COM ENCARGOS COMPLEMENTARES | E11: H | F11: 192 | G11: 126.84 | H11: 156.698136 | I11: 30086.04 | J11: 0.2294663143
A12: 10 | B12: 90776 | C12: SINAPI | D12: ENCARREGADO GERAL COM ENCARGOS COMPLEMENTARES | E12: H | F12: 192 | G12: 28.41 | H12: 35.097714 | I12: 6738.76 | J12: 0.05139654205
F14: Total sem BDI | H14: =F5*G5+F6*G6+F7*G7+F8*G8+F9*G9+F10*G10+F11*G11+F12*G12 -> 106130.08
F15: Total do BDI | H15: =H14*G2 -> 24983.02083
F16: Total Geral | H16: =H15+H14 -> 131113.1008
A18: _______________________________________________________________ Morgane de Aguiar Chagas Setor de Engenharia

Sheet Composição
C1: Obra | E1: Bancos | G1: B.D.I. | I1: Encargos Sociais
C2: Manutenção Preventiva - 4ªSR | E2: SINAPI - 08/2023 - Sergipe SBC - 10/2023 - Sergipe SICRO3 - 04/2023 - Sergipe SICRO2 - 11/2016 - Sergipe ORSE - 08/2023 - Sergipe | G2: 23,54% | I2: Não Desonerado: embutido nos preços unitário dos insumos de mão de obra, de acordo com as bases.
A4: Planilha Orçamentária Analítica
A5: 1 | B5: Código | C5: Banco | D5: Descrição | E5: Tipo | G5: Und | H5: Quant. | I5: Valor Unit | J5: Total
A6: Composição | B6: CODEVASF 024 | C6: Próprio | D6: Limpeza e desinfecção química de reservatório | E6: INHI - INSTALAÇÕES HIDROS SANITÁRIAS | G6: und | H6: 1 | I6: 185.85 | J6: 185.85
A7: Insumo | B7: 00002696 | C7: SINAPI | D7: ENCANADOR OU BOMBEIRO HIDRAULICO (HORISTA) | E7: Mão de Obra | G7: H | H7: 5 | I7: 18.16 | J7: 90.8
A8: Insumo | B8: 00000246 | C8: SINAPI | D8: AUXILIAR DE ENCANADOR OU BOMBEIRO HIDRAULICO (HORISTA) | E8: Mão de Obra | G8: H | H8: 5 | I8: 12.92 | J8: 64.6
A9: Insumo | B9: 00000012 | C9: SINAPI | D9: ESCOVA DE ACO, COM CABO, *4 X 15* FILEIRAS DE CERDAS | E9: Material | G9: UN | H9: 1 | I9: 10.95 | J9: 10.95
A10: Insumo | B10: 615 | C10: ORSE | D10: Cloro líquido para limpeza e desinfecção l | E10: Material | G10: l | H10: 3 | I10: 6.5 | J10: 19.5
E11: MO sem LS => | F11: 155.4 | G11: LS => | H11: 0 | I11: MO com LS => | J11: 155.4
E12: Valor do BDI => | F12: 43.74909 | H12: Valor com BDI => | J12: 229.6
G13: Quant. => | H13: 12 | I13: Preço Total => | J13: 2755.2
A15: 2 | B15: Código | C15: Banco | D15: Descrição | E15: Tipo | G15: Und | H15: Quant. | I15: Valor Unit | J15: Total
A16: Composição | B16: CODEVASF 027 | C16: Próprio | D16: Pedreiro, jornada de 16h/semana em horário comercial, para execução manutenções preventivas (inclusive ferramentas, com fornecimento de materiais básicos) | E16: SEOP - SERVIÇOS OPERACIONAIS | G16: Mês | H16: 1 | I16: 1743.57 | J16: 1743.57
A17: Composição Auxiliar | B17: 88309 | C17: SINAPI | D17: PEDREIRO COM ENCARGOS COMPLEMENTARES | E17: SEDI - SERVIÇOS DIVERSOS | G17: H | H17: 64 | I17: 27.22 | J17: 1742.08
A18: Insumo | B18: 00034353 | C18: SINAPI | D18: ARGAMASSA COLANTE AC II | E18: Material | G18: KG | H18: 1 | I18: 1.49 | J18: 1.49
E19: MO sem LS => | F19: 1187.84 | G19: LS => | H19: 0 | I19: MO com LS => | J19: 1187.84
E20: Valor do BDI => | F20: 410.436378 | H20: Valor com BDI => | J20: 2154.01
G21: Quant. => | H21: 12 | I21: Preço Total => | J21: 25848.12
A23: 5 | B23: Código | C23: Banco | D23: Descrição | E23: Tipo | G23: Und | H23: Quant. | I23: Valor Unit | J23: Total
A24: Composição | B24: CODEVASF 028 | C24: Próprio | D24: Realização de vistoria e elaboração de plano anual de manutenção das edificações | E24: SEES - SERVIÇOS ESPECIAIS | G24: UNID | H24: 1 | I24: 2326.24 | J24: 2326.24
A25: Insumo | B25: 00002707 | C25: SINAPI | D25: ENGENHEIRO CIVIL DE OBRA PLENO | E25: Mão de Obra | G25: H | H25: 8 | I25: 123 | J25: 984
A26: Insumo | B26: 00034783 | C26: SINAPI | D26: ENGENHEIRO ELETRICISTA | E26: Mão de Obra | G26: H | H26: 8 | I26: 142.18 | J26: 1137.44
A27: Insumo | B27: 00004083 | C27: SINAPI | D27: ENCARREGADO GERAL DE OBRAS (HORISTA) | E27: Mão de Obra | G27: H | H27: 4 | I27: 25.36 | J27: 101.44
A28: Insumo | B28: 00002350 | C28: SINAPI | D28: AUXILIAR DE ESCRITORIO (HORISTA) | E28: Mão de Obra | G28: H | H28: 8 | I28: 12.92 | J28: 103.36
E29: MO sem LS => | F29: 2326.24 | G29: LS => | H29: 0 | I29: MO com LS => | J29: 2326.24
E30: Valor do BDI => | F30: 547.596896 | H30: Valor com BDI => | J30: 2873.84
G31: Quant. => | H31: 4 | I31: Preço Total => | J31: 11495.36
A33: 6 | B33: Código | C33: Banco | D33: Descrição | E33: Tipo | G33: Und | H33: Quant. | I33: Valor Unit | J33: Total
A34: Composição | B34: CODEVASF 026 | C34: Próprio | D34: Bombeiro/Encanador Hidraulico, jornada de 16h/semana em horário comercial, para execução manutenções preventivas (inclusive ferramentas, com fornecimento de materiais básicos). | E34: ASTU - ASSENTAMENTO DE TUBOS E PECAS | G34: Mês | H34: 1 | I34: 1708.26 | J34: 1708.26
A35: Composição Auxiliar | B35: 88267 | C35: SINAPI | D35: ENCANADOR OU BOMBEIRO HIDRÁULICO COM ENCARGOS COMPLEMENTARES | E35: SEDI - SERVIÇOS DIVERSOS | G35: H | H35: 64 | I35: 26.48 | J35: 1694.72
A36: Insumo | B36: 00003146 | C36: SINAPI | D36: FITA VEDA ROSCA EM ROLOS DE 18 MM X 10 M (L X C) | E36: Material | G36: UN | H36: 1 | I36: 3.1 | J36: 3.1
A37: Insumo | B37: 00038383 | C37: SINAPI | D37: LIXA D'AGUA EM FOLHA, GRAO 100 | E37: Material | G37: UN | H37: 1 | I37: 2.54 | J37: 2.54
A38: Insumo | B38: 00000119 | C38: SINAPI | D38: ADESIVO PLASTICO PARA PVC, BISNAGA COM 75 GR | E38: Material | G38: UN | H38: 1 | I38: 7.9 | J38: 7.9
E39: MO sem LS => | F39: 1184 | G39: LS => | H39: 0 | I39: MO com LS => | J39: 1184
E40: Valor do BDI => | F40: 402.124404 | H40: Valor com BDI => | J40: 2110.38
G41: Quant. => | H41: 12 | I41: Preço Total => | J41: 25324.56
A43: 7 | B43: Código | C43: Banco | D43: Descrição | E43: Tipo | G43: Und | H43: Quant. | I43: Valor Unit | J43: Total
A44: Composição | B44: CODEVASF 025 | C44: Próprio | D44: Eletricista, jornada de 16h/semana em horário comercial, para execução manutenções preventivas (inclusive ferramentas, com fornecimento de materiais básicos) | E44: INEL - INSTALAÇÃO ELÉTRICA/ELETRIFICAÇÃO E ILUMINAÇÃO EXTERNA | G44: Mês | H44: 1 | I44: 1772.08 | J44: 1772.08
A45: Composição Auxiliar | B45: 88264 | C45: SINAPI | D45: ELETRICISTA COM ENCARGOS COMPLEMENTARES | E45: SEDI - SERVIÇOS DIVERSOS | G45: H | H45: 64 | I45: 27.52 | J45: 1761.28
A46: Insumo | B46: 00021127 | C46: SINAPI | D46: FITA ISOLANTE ADESIVA ANTICHAMA, USO ATE 750 V, EM ROLO DE 19 MM X 5 M | E46: Material | G46: UN | H46: 2 | I46: 3.97 | J46: 7.94
A47: Insumo | B47: 00000404 | C47: SINAPI | D47: FITA ISOLANTE DE BORRACHA AUTOFUSAO, USO ATE 69 KV (ALTA TENSAO) | E47: Material | G47: M | H47: 2 | I47: 1.43 | J47: 2.86
E48: MO sem LS => | F48: 1207.68 | G48: LS => | H48: 0 | I48: MO com LS => | J48: 1207.68
E49: Valor do BDI => | F49: 417.147632 | H49: Valor com BDI => | J49: 2189.23
G50: Quant. => | H50: 12 | I50: Preço Total => | J50: 26270.76
A52: 8 | B52: Código | C52: Banco | D52: Descrição | E52: Tipo | G52: Und | H52: Quant. | I52: Valor Unit | J52: Total
A53: Composição | B53: 12637 | C53: ORSE | D53: Limpeza de fossa até 5m3 | E53: Fossas Sépticas | G53: un | H53: 1 | I53: 350 | J53: 350
A54: Insumo | B54: 13425 | C54: ORSE | D54: Limpeza de fossa até 5m3 un | E54: Serviços | G54: un | H54: 1 | I54: 350 | J54: 350
E55: MO sem LS => | F55: 0 | G55: LS => | H55: 0 | I55: MO com LS => | J55: 0
E56: Valor do BDI => | F56: 82.39 | H56: Valor com BDI => | J56: 432.39
G57: Quant. => | H57: 6 | I57: Preço Total => | J57: 2594.34
A59: 9 | B59: Código | C59: Banco | D59: Descrição | E59: Tipo | G59: Und | H59: Quant. | I59: Valor Unit | J59: Total
A60: Composição | B60: 90778 | C60: SINAPI | D60: ENGENHEIRO CIVIL DE OBRA PLENO COM ENCARGOS COMPLEMENTARES | E60: SEDI - SERVIÇOS DIVERSOS | G60: H | H60: 1 | I60: 126.84 | J60: 126.84
A61: Composição Auxiliar | B61: 95403 | C61: SINAPI | D61: CURSO DE CAPACITAÇÃO PARA ENGENHEIRO CIVIL DE OBRA PLENO (ENCARGOS COMPLEMENTARES) - HORISTA | E61: SEDI - SERVIÇOS DIVERSOS | G61: H | H61: 1 | I61: 1.91 | J61: 1.91
A62: Insumo | B62: 00002707 | C62: SINAPI | D62: ENGENHEIRO CIVIL DE OBRA PLENO | E62: Mão de Obra | G62: H | H62: 1 | I62: 123 | J62: 123
A63: Insumo | B63: 00037372 | C63: SINAPI | D63: EXAMES - HORISTA (COLETADO CAIXA - ENCARGOS COMPLEMENTARES) | E63: Outros | G63: H | H63: 1 | I63: 1.14 | J63: 1.14
A64: Insumo | B64: 00037373 | C64: SINAPI | D64: SEGURO - HORISTA (COLETADO CAIXA - ENCARGOS COMPLEMENTARES) | E64: Taxas | G64: H | H64: 1 | I64: 0.07 | J64: 0.07
A65: Insumo | B65: 00043462 | C65: SINAPI | D65: FERRAMENTAS - FAMILIA ENGENHEIRO CIVIL - HORISTA (ENCARGOS COMPLEMENTARES - COLETADO CAIXA) | E65: Equipamento | G65: H | H65: 1 | I65: 0.01 | J65: 0.01
A66: Insumo | B66: 00043486 | C66: SINAPI | D66: EPI - FAMILIA ENGENHEIRO CIVIL - HORISTA (ENCARGOS COMPLEMENTARES - COLETADO CAIXA) | E66: Equipamento | G66: H | H66: 1 | I66: 0.71 | J66: 0.71
E67: MO sem LS => | F67: 124.91 | G67: LS => | H67: 0 | I67: MO com LS => | J67: 124.91
E68: Valor do BDI => | F68: 29.858136 | H68: Valor com BDI => | J68: 156.7
G69: Quant. => | H69: 192 | I69: Preço Total => | J69: 30086.4
A71: 10 | B71: Código | C71: Banco | D71: Descrição | E71: Tipo | G71: Und | H71: Quant. | I71: Valor Unit | J71: Total
A72: Composição | B72: 90776 | C72: SINAPI | D72: ENCARREGADO GERAL COM ENCARGOS COMPLEMENTARES | E72: SEDI - SERVIÇOS DIVERSOS | G72: H | H72: 1 | I72: 28.41 | J72: 28.41
A73: Composição Auxiliar | B73: 95401 | C73: SINAPI | D73: CURSO DE CAPACITAÇÃO PARA ENCARREGADO GERAL (ENCARGOS COMPLEMENTARES) - HORISTA | E73: SEDI - SERVIÇOS DIVERSOS | G73: H | H73: 1 | I73: 0.56 | J73: 0.56
A74: Insumo | B74: 00004083 | C74: SINAPI | D74: ENCARREGADO GERAL DE OBRAS (HORISTA) | E74: Mão de Obra | G74: H | H74: 1 | I74: 25.36 | J74: 25.36
A75: Insumo | B75: 00037372 | C75: SINAPI | D75: EXAMES - HORISTA (COLETADO CAIXA - ENCARGOS COMPLEMENTARES) | E75: Outros | G75: H | H75: 1 | I75: 1.14 | J75: 1.14
A76: Insumo | B76: 00037373 | C76: SINAPI | D76: SEGURO - HORISTA (COLETADO CAIXA - ENCARGOS COMPLEMENTARES) | E76: Taxas | G76: H | H76: 1 | I76: 0.07 | J76: 0.07
A77: Insumo | B77: 00043463 | C77: SINAPI | D77: FERRAMENTAS - FAMILIA ENCARREGADO GERAL - HORISTA (ENCARGOS COMPLEMENTARES - COLETADO CAIXA) | E77: Equipamento | G77: H | H77: 1 | I77: 0.11 | J77: 0.11
A78: Insumo | B78: 00043487 | C78: SINAPI | D78: EPI - FAMILIA ENCARREGADO GERAL - HORISTA (ENCARGOS COMPLEMENTARES - COLETADO CAIXA) | E78: Equipamento | G78: H | H78: 1 | I78: 1.17 | J78: 1.17
E79: MO sem LS => | F79: 25.92 | G79: LS => | H79: 0 | I79: MO com LS => | J79: 25.92
E80: Valor do BDI => | F80: 6.687714 | H80: Valor com BDI => | J80: 35.1
G81: Quant. => | H81: 192 | I81: Preço Total => | J81: 6739.2
F84: Total sem BDI | H84: 106130.08
F85: Total do BDI | H85: 24983.86
F86: Total Geral | H86: 131113.94
A88: _______________________________________________________________ Morgane de Aguiar Chagas Setor de Engenharia

Sheet BDI
A1: SERVIÇO: Manutenção Predial - 4ªSR
A2: DOCUMENTO: DETALHAMENTO DA BONIFICAÇÃO E DESPESAS INDIRETAS
A4: FÓRMULA APLICADA
A6: BDI = { [ ( 1 + AC / 100 + R / 100 + SG/100 ) . ( 1 + DF / 100 ) . ( 1 + L / 100 ) / ( 1 - I / 100 ) ] - 1 } . 100
A8: ONDE:
A9: BDI = | B9: Bonificação e Despesas Indiretas
A10: AC = | B10: Administração Central
A11: SG= | B11: Seguros e garantias
A12: DF = | B12: Despesas Financeiras
A13: R = | B13: Riscos
A14: L = | B14: Lucro
A15: I = | B15: Impostos
A16: EXECUÇÃO DE SERVIÇOS
A18: ITEM | B18: DESCRIÇÃO | C18: PERCENTUAIS (%)
A19: 1 | B19: Administração Central | C19: 4
A20: 2 | B20: Seguros e garantias | C20: 0.8
A21: 3 | B21: Riscos | C21: 1.27
A22: 4 | B22: Despesas Financeiras | C22: 1.23
A23: 5 | B23: Lucro | C23: 7.4
A24: 6 | B24: Impostos | C24: =SUM(C25:C28) -> 6.65
A25: 6.1 | B25: PIS | C25: 0.65
A26: 6.2 | B26: COFINS | C26: 3
A27: 6.3 | B27: ISS | C27: 3
A28: 6.4 | B28: IPRB | C28: 0
A29: BDI | C29: =ROUND((((1+C19/100+C20/100+C21/100)*(1+C22/100)*(1+C23/100))/(1-C24/100))-1,4) -> 0.2354
